bitfinex-derivatives/quotes_ETHF0:USTF0_20250528
["timestamp","ask_amount","ask_price","bid_price","bid_amount"]
[1748451761700,4.351,2657.1,2656.8,0.00564759]
[1748451761904,3.2078,2656.9,2655.9,3.2078]
[1748451762209,3.2078,2656.4,2655.5,4.4859]
[1748451762506,40.8,2656.8,2656.2,3.2078]
[1748451762701,0.649,2657.2,2656.7,3.2078]
[1748451762895,0.00564759,2657.3,2656.7,3.21344759]
[1748451763104,0.00564759,2657.3,2656.8,1.2781]
[1748451763805,0.00564759,2657.3,2657.0,3.2078]
[1748451764105,0.00564759,2657.3,2657.1,1.2781]
[1748451764404,0.00564759,2657.3,2657.0,3.2078]
[1748451764796,0.75245,2657.1,2657.0,3.2078]
[1748451764999,0.75254,2656.8,2656.7,0.00564759]
[1748451765500,0.75268,2656.3,2656.2,3.2078]
[1748451765704,0.75273,2656.2,2655.8,1.2346]
[1748451765903,2.01503,2656.2,2656.1,3.2078]
[1748451766106,0.75279,2655.9,2655.8,4.4424]
[1748451766303,1.2623,2656.2,2655.8,4.4424]
[1748451766503,0.75279,2655.9,2655.8,4.4424]
[1748451766700,0.75279,2655.9,2655.8,3.2078]
[1748451766910,0.75279,2655.9,2655.8,4.4424]
[1748451767504,1.88142,2656.7,2655.8,8.2078]
[1748451767809,5.8509,2657.2,2656.5,3.2078]
[1748451768005,1.88121,2657.0,2656.2,3.2078]
[1748451768206,0.75262,2656.6,2656.5,3.2078]
[1748451769106,0.75262,2656.6,2656.4,3.2078]
[1748451769410,0.75265,2656.4,2656.3,3.2078]
[1748451769611,1.3002,2656.5,2655.7,0.00564759]
[1748451769612,0.75282,2655.8,2655.7,0.00564759]
[1748451769803,0.75281,2655.9,2655.7,0.00564759]
[1748451769999,0.7528,2655.9,2655.8,3.2078]
[1748451770207,0.75282,2655.8,2655.7,0.00564759]
[1748451770414,3.96062,2655.8,2655.7,7.59e-06]
[1748451770606,5.75282,2655.8,2655.7,7.59e-06]
[1748451771404,13.52462,2655.8,2655.7,7.59e-06]
[1748451772216,12.7718,2655.8,2654.4,4.4444]
[1748451772405,1.88259,2655.1,2654.4,4.4444]
[1748451772707,3.2078,2655.3,2654.7,3.2078]
[1748451772902,4.4743,2655.6,2654.8,4.4444]
[1748451773108,0.75307,2654.9,2654.8,3.2078]
[1748451773505,0.75313,2654.7,2654.6,0.00564759]
[1748451773706,0.75313,2654.7,2654.6,3.21344759]
[1748451774103,2.01963,2654.8,2654.6,3.21344759]
[1748451774304,5.31713,2654.7,2654.6,3.21344759]
[1748451774505,1.2625,2654.7,2654.6,3.21344759]
[1748451774710,3.2078,2655.9,2655.1,0.75299]
[1748451774910,0.75295,2655.4,2655.2,4.5216]
[1748451775111,0.75296,2655.3,2655.2,4.5216]
[1748451775418,1.2625,2655.3,2655.2,4.5216]
[1748451776009,2.01546,2655.3,2655.2,3.2078]
[1748451777216,1.2625,2655.3,2654.8,3.2078]
[1748451777412,0.75301,2655.2,2655.1,3.2078]
[1748451778018,1.2625,2655.3,2655.1,3.2078]
[1748451778220,1.2625,2655.3,2655.1,3.96081]
[1748451778514,1.2625,2655.3,2655.2,1.2204]
[1748451778714,2.01546,2655.3,2655.2,1.2204]
[1748451778922,2.01546,2655.3,2655.0,3.2078]
[1748451778923,0.75303,2655.1,2655.0,3.2078]
[1748451779111,1.2625,2655.3,2655.0,3.2078]
[1748451779312,0.75302,2655.1,2655.0,3.2078]
[1748451779518,2.01548,2655.3,2655.0,3.2078]
[1748451779814,1.2625,2655.3,2655.0,3.2078]
[1748451780012,0.75302,2655.1,2655.0,3.2078]
[1748451780613,0.753,2655.2,2655.0,3.2078]
[1748451781014,0.753,2655.2,2655.1,1.3307]
[1748451781216,0.00564759,2655.5,2655.1,1.3307]
[1748451781417,0.00564759,2655.5,2655.4,3.2078]
[1748451781622,0.75854759,2655.5,2655.4,3.2078]
[1748451782716,0.00564759,2655.5,2655.4,3.2078]
[1748451783119,0.00564759,2655.5,2655.4,4.4856]
[1748451783726,5.00564759,2655.5,2655.0,3.2078]
[1748451783922,0.75341,2653.7,2653.6,3.2078]
[1748451784319,0.75344,2653.6,2653.5,1.3003]
[1748451784822,0.75341,2653.7,2653.6,0.3771]
[1748451785016,0.75344,2653.6,2653.5,0.6609]
[1748451785222,0.75347,2653.5,2653.4,0.00564759]
[1748451785418,3.21344759,2653.9,2653.4,0.00564759]
[1748451785622,1.307,2653.8,2653.4,0.00564759]
[1748451785821,0.75344,2653.6,2653.4,0.00564759]
[1748451786220,0.75347,2653.5,2653.4,0.00564759]
[1748451786520,2.10407,2653.5,2653.4,0.00564759]
[1748451787121,0.00564759,2653.9,2653.8,0.75339]
[1748451787419,3.2078,2654.8,2653.7,3.2078]
[1748451787626,2.10378,2654.6,2653.8,18.886]
[1748451787828,0.75313,2654.7,2654.3,0.75323]
[1748451788026,1.3506,2655.0,2654.0,3.2078]
[1748451788218,1.3506,2655.0,2654.4,0.75322]
[1748451788421,0.75317,2654.6,2654.1,0.7533]
[1748451788631,0.75313,2654.8,2654.0,3.2078]
[1748451788927,0.75317,2654.6,2654.1,0.75328]
[1748451789133,0.75317,2654.6,2654.2,2.10517]
[1748451789419,0.00564759,2655.0,2654.3,1.3439]
[1748451789723,0.00564759,2655.0,2654.5,3.2078]
[1748451789924,0.00564759,2655.0,2654.6,1.3439]
[1748451790124,0.00564759,2655.0,2654.8,0.75309]
[1748451790324,0.00564759,2655.0,2654.9,2.09697]
[1748451790519,0.75868759,2655.0,2654.9,1.3439]
[1748451790724,0.00564759,2655.0,2654.9,1.3439]
[1748451791129,0.75868759,2655.0,2654.9,1.3439]
[1748451791318,0.00564759,2655.0,2654.9,1.3439]
[1748451791723,0.75868759,2655.0,2654.9,1.3439]
[1748451791926,0.75307,2654.9,2654.8,3.2078]
[1748451792126,0.75307,2654.9,2654.8,1.3439]
[1748451792530,2.01177,2654.9,2654.8,1.3439]
[1748451792830,6.2587,2654.9,2654.2,3.96106]
[1748451793126,5.09092,2654.3,2653.5,1.3047]
[1748451793433,0.75339,2653.8,2653.7,1.346]
[1748451793918,3.2078,2654.0,2653.5,0.6302]
[1748451793919,0.75343,2653.7,2653.5,0.6302]
[1748451794120,2.01213,2653.7,2653.6,1.346]
[1748451794529,4.566,2654.0,2653.6,1.346]
[1748451794724,1.2587,2653.9,2653.6,1.346]
[1748451794924,1.2587,2653.9,2653.6,2.09942]
[1748451795428,2.01204,2653.9,2653.7,1.3275]
[1748451795617,1.2587,2653.9,2653.3,3.2078]
[1748451795822,1.2587,2653.9,2653.4,1.33314759]
[1748451796029,0.75342,2653.5,2653.4,1.33314759]
[1748451796429,2.01203,2653.9,2653.5,0.75341]
[1748451796625,0.75336,2653.7,2653.6,1.3275]
[1748451797423,0.75341,2653.6,2653.4,0.00564759]
[1748451797627,0.75342,2653.5,2653.4,1.33314759]
[1748451798233,0.75342,2653.5,2653.4,0.00564759]
[1748451798638,0.75356,2653.1,2652.9,1.2519]
[1748451798934,3.15986,2653.4,2652.9,1.2519]
[1748451799137,0.75358,2653.0,2652.9,1.2519]
[1748451799334,0.75356,2653.1,2652.9,1.2519]
[1748451799736,0.00564759,2653.3,2652.9,1.2519]
[1748451799926,0.75355,2653.1,2652.9,1.2519]
[1748451800128,0.75356,2653.1,2652.9,1.2519]
[1748451800333,1.2762,2653.2,2652.9,1.2519]
[1748451800632,0.00564759,2653.3,2652.9,1.2519]
[1748451800837,0.75915759,2653.3,2653.1,3.2078]
[1748451801138,0.00564759,2653.3,2653.2,1.2519]
[1748451801334,0.00564759,2653.3,2653.2,2.00542]
[1748451802031,0.75913759,2653.3,2653.2,1.2519]
[1748451802236,0.00564759,2653.3,2653.2,2.00542]
[1748451803638,0.00564759,2653.3,2653.2,2.61702]
[1748451804038,0.00564759,2653.3,2653.2,7.61702]
[1748451804343,0.00564759,2653.3,2653.2,2.61702]
[1748451804546,0.00564759,2653.3,2653.2,7.61702]
[1748451804834,0.75914759,2653.3,2653.2,1.8635]
[1748451805034,0.75914759,2653.3,2653.2,21.42803]
[1748451805035,0.00564759,2653.3,2653.2,21.42803]
[1748451807144,0.00564759,2653.3,2653.2,26.42803]
[1748451807644,3.2078,2654.4,2653.3,0.3771]
[1748451807840,2.08933,2654.6,2654.5,0.75316]
[1748451808040,0.75316,2654.5,2654.4,1.223]
[1748451808240,2.08936,2654.5,2654.4,1.223]
[1748451808645,3.21344759,2654.7,2654.4,1.223]
[1748451808840,3.764,2655.8,2654.4,1.223]
[1748451808841,9.77285,2655.7,2654.7,1.88276]
[1748451809045,2.73176,2655.6,2655.4,0.75289]
[1748451809243,1.3362,2655.6,2655.5,0.75287]
[1748451809449,7.8908,2656.1,2655.3,3.2078]
[1748451809644,1.3362,2656.0,2655.6,0.75283]
[1748451809940,1.3362,2656.0,2655.5,18.80764759]
[1748451810343,1.3362,2656.0,2655.6,3.96064]
[1748451810646,2.08896,2656.0,2655.7,0.75282]
[1748451810840,1.3362,2656.0,2655.7,1.2804]
[1748451811246,2.08894,2656.0,2655.8,0.75279]
[1748451811438,1.3362,2656.0,2655.8,0.75279]
[1748451811644,2.08893,2656.0,2655.9,1.2804]
[1748451811840,1.3362,2656.0,2655.6,3.2078]
[1748451812041,1.3362,2656.0,2655.5,18.80764759]
[1748451812042,0.75279,2655.8,2655.7,18.784]
[1748451812544,0.00564759,2656.1,2656.0,0.75273]
[1748451812747,3.2078,2657.2,2656.1,1.88176]
[1748451812941,0.75247,2657.0,2656.9,3.2078]
[1748451813243,1.3098,2657.1,2656.9,3.2078]
[1748451813549,2.06223,2657.1,2657.0,1.2804]
[1748451813747,1.3098,2657.1,2657.0,1.2804]
[1748451813947,2.06222,2657.1,2657.0,1.2804]
[1748451814745,0.00564759,2657.3,2657.0,6.2804]
[1748451814951,0.00564759,2657.3,2657.2,3.96019]
[1748451815152,0.00564759,2657.3,2657.2,8.64119]
[1748451815355,0.75206,2658.4,2657.2,12.8888]
[1748451815548,3.2078,2658.5,2658.1,3.2078]
[1748451815749,3.2078,2658.5,2657.1,3.8544]
[1748451815750,7.8888,2658.5,2657.1,3.8544]
[1748451816047,0.75239,2657.2,2657.1,3.2078]
[1748451816251,0.75248,2656.9,2656.8,22.01844759]
[1748451816553,0.00564759,2657.4,2656.8,22.01844759]
[1748451816853,0.7524,2657.2,2656.9,2.05105]
[1748451817148,0.00564759,2657.4,2657.2,0.75238]
[1748451817347,0.75798759,2657.4,2657.1,3.9602]
[1748451817550,0.75236,2657.3,2657.2,1.2986]
[1748451817752,0.75236,2657.3,2657.2,20.1036]
[1748451818047,0.75239,2657.2,2657.1,3.2078]
[1748451818254,1.253,2657.3,2656.8,7.89344759]
[1748451818445,0.75248,2656.9,2656.8,1.30424759]
[1748451818854,0.75248,2656.9,2656.8,0.00564759]
[1748451819050,5.08783,2658.6,2657.2,1.88096]
[1748451819247,1.253,2658.5,2658.0,3.2078]
[1748451819452,3.13308,2658.5,2658.1,18.828]
[1748451819647,0.75214,2658.1,2658.0,3.2078]
[1748451819856,0.75214,2658.1,2658.0,22.0328]
[1748451820155,0.7521,2658.3,2658.0,22.0328]
[1748451820347,0.75207,2658.4,2658.0,22.0328]
[1748451820553,2.00504,2658.5,2658.1,1.97252]
[1748451820753,1.253,2658.5,2658.2,1.2204]
[1748451820951,0.75207,2658.4,2658.2,1.2204]
[1748451821155,3.2078,2658.6,2658.4,0.75205]
[1748451821459,0.752,2658.6,2658.5,1.2204]
[1748451821657,0.75199,2658.7,2658.5,1.2204]
[1748451821854,3.2078,2659.2,2658.6,3.2078]
[1748451822055,1.2387,2659.1,2658.6,3.2078]
[1748451822259,0.75197,2658.7,2658.6,3.2078]
[1748451822649,0.75196,2658.8,2658.6,3.2078]
[1748451822858,1.2387,2659.1,2658.6,3.2078]
[1748451823058,3.11838,2659.1,2658.3,3.2078]
[1748451823255,0.75204,2658.5,2658.2,0.00564759]
[1748451823455,0.752,2658.6,2658.5,3.2078]
[1748451823649,0.75205,2658.4,2658.3,18.812]
[1748451824558,0.75208,2658.3,2658.2,3.21344759]
[1748451824756,1.97798,2658.3,2658.2,0.00564759]
[1748451824956,0.75222,2657.8,2657.7,3.2078]
[1748451825354,0.7523,2657.6,2657.3,3.2078]
[1748451825558,1.97808,2658.0,2657.4,18.843]
[1748451825752,0.75228,2657.6,2657.5,3.2078]
[1748451826359,0.75228,2657.6,2657.5,22.0638]
[1748451826552,0.75227,2657.7,2657.5,22.0638]
[1748451826749,0.75228,2657.6,2657.5,22.0638]
[1748451826957,1.3483,2657.7,2657.5,22.0638]
[1748451827263,0.75228,2657.6,2657.5,22.0638]
[1748451827855,1.3483,2657.7,2657.3,4.66864759]
[1748451828057,0.75234,2657.4,2657.3,0.00564759]
[1748451829061,0.75231,2657.5,2657.3,0.00564759]
[1748451829262,1.3483,2657.7,2657.5,0.7523]
[1748451829463,0.75228,2657.6,2657.5,3.2078]
[1748451829658,0.75228,2657.6,2657.5,22.0388]
[1748451830163,2.10057,2657.7,2657.4,3.2078]
[1748451830364,1.3483,2657.7,2657.5,0.7523]
[1748451830561,1.3483,2657.7,2657.4,3.2078]
[1748451830764,2.10057,2657.7,2657.5,0.7523]
[1748451830959,1.3483,2657.7,2657.6,0.75228]
[1748451831155,0.00564759,2657.8,2657.7,0.75225]
[1748451832049,0.00564759,2657.8,2657.6,3.2078]
[1748451832256,1.35354759,2657.8,2657.4,18.817]
[1748451832461,1.35354759,2657.8,2657.7,0.75225]
[1748451832662,0.75225,2657.7,2657.6,0.75226]
[1748451832857,2.10579759,2657.8,2657.6,0.75227]
[1748451833055,0.75225,2657.7,2657.6,3.96007]
[1748451833359,2.10015,2657.7,2657.6,3.2078]
[1748451833863,2.10017,2657.7,2657.5,0.75229]
[1748451834155,1.3479,2657.7,2657.4,18.79]
[1748451834459,1.3479,2657.7,2657.6,0.75228]
[1748451835951,1.3479,2657.7,2657.6,3.96008]
[1748451836356,0.00564759,2657.8,2657.7,0.75225]
[1748451837761,1.34454759,2657.8,2657.3,3.21344759]
[1748451837961,1.34454759,2657.8,2657.7,3.2078]
[1748451838158,1.34454759,2657.8,2657.3,3.21344759]
[1748451838360,1.88065,2657.7,2657.4,18.76]
[1748451838665,0.75234,2657.4,2657.3,3.21344759]
[1748451838867,0.75233,2657.5,2657.3,21.97544759]
[1748451839062,0.00564759,2657.8,2657.4,1.88083]
[1748451839262,0.00564759,2657.8,2657.7,3.96005]
[1748451840065,7.59e-06,2657.8,2657.7,8.96005]
[1748451840461,7.59e-06,2657.8,2657.7,10.19935]
[1748451840669,4.4513,2659.6,2658.0,0.3771]
[1748451840869,0.75179,2659.4,2659.2,0.75183]
[1748451841170,0.75184,2659.2,2659.0,19.57187]
[1748451841576,0.75182,2659.3,2659.1,0.75186]
[1748451841765,0.75184,2659.2,2659.0,18.82]
[1748451841968,0.75184,2659.2,2659.0,19.57186]
[1748451842165,4.4513,2659.6,2659.0,18.82]
[1748451842365,0.75181,2659.3,2659.0,18.82]
[1748451842572,0.75179,2659.4,2659.1,0.75184]
[1748451842869,0.75179,2659.4,2659.0,18.82]
[1748451842870,1.87938,2659.5,2659.0,18.82]
[1748451843073,0.75188,2659.0,2658.9,0.00564759]
[1748451843369,1.79074945,2659.0,2658.9,0.00564759]
[1748451843569,6.79074945,2659.0,2658.9,0.00564759]
[1748451843864,47.16366945,2659.0,2656.7,5.08911]
[1748451844070,3.2078,2657.7,2657.1,1.2755]
[1748451844272,3.76041,2658.4,2656.7,3.2078]
[1748451844273,3.2078,2657.4,2656.7,3.2078]
[1748451844476,0.75257,2656.6,2656.4,3.2078]
[1748451844765,0.7526,2656.5,2656.2,0.75831759]
[1748451844958,3.2078,2656.5,2656.4,0.75262]
[1748451845163,0.00564759,2656.8,2656.7,0.75254]
[1748451845368,0.00564759,2656.8,2656.7,19.58754]
[1748451846071,0.00564759,2656.8,2656.7,18.835]
[1748451846273,0.00564759,2656.8,2656.7,19.58054]
[1748451847871,0.00564759,2656.8,2656.7,18.813]
[1748451848075,0.00564759,2656.8,2656.7,19.56554]
[1748451848769,0.00564759,2656.8,2656.2,1.88730759]
[1748451848770,0.00564759,2656.8,2656.2,0.00564759]
[1748451848983,0.7526,2656.5,2656.2,3.96610759]
[1748451849269,0.75265,2656.3,2656.2,3.21344759]
[1748451849472,1.2389,2656.4,2656.2,0.00564759]
[1748451849666,0.75265,2656.3,2656.2,0.00564759]
[1748451849870,3.96045,2656.3,2656.2,0.00564759]
[1748451850167,1.88186,2656.0,2655.3,0.75291]
[1748451850369,3.2078,2655.8,2655.2,22.0468]
[1748451850576,1.2735,2655.9,2655.3,1.3276]
[1748451850771,1.2735,2655.7,2655.5,0.75287]
[1748451850972,2.02632,2655.7,2655.5,0.75286]
[1748451851278,1.2735,2655.7,2655.6,0.75285]
[1748451851770,0.75288,2655.5,2655.3,1.33324759]
[1748451851974,2.0264,2655.4,2655.3,0.00564759]
[1748451852172,3.2078,2655.8,2655.3,0.00564759]
[1748451852473,0.7529,2655.4,2655.3,0.00564759]
[1748451853271,1.2735,2655.7,2655.3,0.75856759]
[1748451853771,1.2735,2655.7,2655.5,0.75286]
[1748451853772,2.02632,2655.7,2655.5,0.75286]
[1748451853977,1.2735,2655.7,2655.5,0.75286]
[1748451854271,1.2735,2655.7,2655.6,0.75285]
[1748451854476,0.6666,2656.3,2655.6,0.75285]
[1748451854477,3.2078,2656.9,2655.6,3.2078]
[1748451854771,0.6233,2657.3,2656.7,3.96034]
[1748451855070,0.75247,2657.0,2656.7,22.77834]
[1748451855274,0.75254,2656.7,2656.5,1.2398]
[1748451855476,1.2359,2656.9,2656.7,0.75254]
[1748451856267,7.8548,2657.5,2656.7,0.75254]
[1748451856470,0.7524,2657.2,2656.7,0.75254]
[1748451856664,1.3297,2657.4,2656.7,0.75254]
[1748451856873,0.75237,2657.3,2656.7,0.75254]
[1748451857272,1.88099,2657.3,2656.7,0.75254]
[1748451857472,0.75249,2656.9,2656.7,19.54854]
[1748451857672,0.75249,2656.9,2656.7,19.54454]
[1748451857873,0.75247,2657.0,2656.7,19.54454]
[1748451858077,2.08219,2656.9,2656.7,19.54454]
[1748451858472,1.3297,2656.9,2656.7,19.54454]
[1748451859078,2.08219,2656.9,2656.7,19.54454]
[1748451859579,1.30284759,2656.8,2656.7,19.54454]
[1748451860169,1.30284759,2656.8,2656.6,7.8548]
[1748451860373,1.30284759,2656.8,2656.7,19.50954]
[1748451860575,0.00564759,2656.8,2656.7,19.50954]
[1748451860777,3.2078,2658.1,2657.3,0.75237]
[1748451861074,5.08819,2658.1,2657.6,3.2078]
[1748451861271,3.2078,2658.1,2657.6,21.9928]
[1748451861477,1.2917,2658.4,2657.7,1.88064]
[1748451861772,0.75214,2658.1,2658.0,0.75215]
[1748451862167,1.4154,2658.2,2657.8,3.21344759]
[1748451862474,0.7522,2657.9,2657.8,0.00564759]
[1748451862677,0.75237,2657.4,2657.2,3.2078]
[1748451862879,1.3045,2657.3,2657.2,3.96017]
[1748451863069,1.88106,2657.1,2656.5,3.2078]
[1748451863276,0.75249,2656.9,2656.8,0.75248]
[1748451863778,1.3045,2657.0,2656.9,0.75248]
[1748451864077,1.3045,2657.0,2656.8,3.96028]
[1748451864279,1.3045,2657.0,2656.9,0.75248]
[1748451864479,1.3045,2657.0,2656.7,1.2441]
[1748451864681,0.75249,2656.9,2656.8,0.75249]
[1748451865375,1.3045,2657.0,2656.9,0.75248]
[1748451865885,0.75248,2656.9,2656.8,3.2078]
[1748451866477,3.2078,2657.8,2656.8,3.2078]
[1748451866783,3.21882,2657.5,2656.8,3.2078]
[1748451867087,0.75248,2656.9,2656.8,3.2078]
[1748451867978,9.646,2656.9,2656.2,0.75266]
[1748451868183,2.08652,2656.8,2656.5,0.75258]
[1748451868874,1.334,2656.8,2656.6,0.75255]
[1748451869190,1.334,2656.8,2656.5,4.4747]
[1748451869682,2.08653,2656.8,2656.5,2.01948]
[1748451869877,1.334,2656.8,2656.4,0.38274759]
[1748451870078,0.75269,2656.2,2655.9,0.75275]
[1748451870278,1.334,2656.1,2655.9,1.2669]
[1748451870482,1.334,2656.1,2655.9,2.01965]
[1748451870678,1.334,2656.1,2656.0,0.75273]
[1748451870882,1.334,2656.1,2656.0,1.12983]
[1748451871086,0.6638,2657.0,2656.0,6.2669]
[1748451871386,1.2976,2656.7,2656.3,0.75263]
[1748451871582,1.2976,2656.7,2656.4,1.3436]
[1748451871778,0.75259,2656.5,2656.4,1.3436]
[1748451872376,1.2976,2656.7,2656.4,1.3436]
[1748451872681,0.75257,2656.6,2656.4,2.09621]
[1748451872989,2.05019,2656.5,2656.4,1.3436]
[1748451873379,1.88156,2656.4,2655.8,3.21344759]
[1748451873583,0.75276,2655.9,2655.8,0.00564759]
[1748451874081,0.75276,2655.9,2655.8,20.14724759]
[1748451874278,0.75276,2655.9,2655.8,1.34924759]
[1748451875090,1.2248,2656.1,2655.8,4.55704759]
[1748451875284,1.2248,2656.1,2656.0,0.75273]
[1748451875784,1.9775,2656.1,2655.9,0.75274]
[1748451875986,1.9775,2656.1,2655.9,1.97004]
[1748451877083,0.75273,2656.0,2655.9,1.2173]
[1748451877388,0.75276,2655.9,2655.8,18.77664759]
[1748451878075,1.2809,2656.0,2655.8,18.77664759]
[1748451878279,0.75276,2655.9,2655.8,0.00564759]
[1748451879990,3.2078,2656.1,2655.8,0.00564759]
[1748451880286,5.24143,2656.1,2655.9,0.75275]
[1748451880485,5.24143,2656.1,2655.9,1.97055]
[1748451880486,0.75273,2656.0,2655.9,1.97055]
[1748451880691,1.2645,2656.0,2655.9,1.97055]
[1748451881090,1.2645,2656.0,2655.9,2.34765]
[1748451881979,1.2645,2656.0,2655.8,0.00564759]
[1748451882185,0.75276,2655.9,2655.8,0.00564759]
[1748451882590,1.2645,2656.0,2655.9,0.75276]
[1748451882786,1.2645,2656.0,2655.8,0.00564759]
[1748451882993,0.75276,2655.9,2655.8,0.00564759]
[1748451884895,2.05846,2655.9,2655.8,0.00564759]
[1748451885707,1.88222,2655.5,2654.9,3.8638]
[1748451885893,0.75297,2655.2,2655.0,18.697]
[1748451886096,2.05869,2655.1,2654.9,3.8638]
[1748451886303,1.3057,2655.1,2655.0,19.44602]
[1748451886499,2.05871,2655.1,2655.0,18.693]
[1748451886705,1.3057,2655.1,2655.0,0.75302]
[1748451886899,2.05872,2655.1,2654.9,23.94572]
[1748451887100,2.05872,2655.1,2655.0,18.68]
[1748451887307,1.3057,2655.1,2655.0,0.75302]
[1748451887602,1.88136,2656.7,2655.1,1.88248]
[1748451887803,3.2078,2656.9,2656.4,0.75262]
[1748451887804,4.4461,2656.9,2656.4,0.75262]
[1748451887996,0.75257,2656.6,2656.4,0.75262]
[1748451888200,6.32733,2656.9,2656.3,1.2751]
[1748451888406,0.75262,2656.4,2656.3,1.2751]
[1748451889006,0.75268,2656.2,2656.1,0.00564759]
[1748451891306,1.40978,2656.2,2656.1,0.00564759]
[1748451892306,0.75284,2655.7,2655.2,3.8333]
[1748451892507,0.75283,2655.7,2655.5,2.01747]
[1748451892811,0.75285,2655.6,2655.5,1.2646]
[1748451893107,0.75289,2655.5,2655.3,0.75292]
[1748451893409,0.7529,2655.4,2655.3,1.2646]
[1748451893603,1.2724,2655.5,2655.3,2.01752]
[1748451893811,0.7529,2655.4,2655.3,2.01752]
[1748451894403,0.7529,2655.4,2655.3,1.6417]
[1748451894706,2.1365,2655.5,2655.3,2.39463]
[1748451894910,1.3836,2655.5,2655.4,0.3771]
[1748451895111,2.13647,2655.5,2655.4,0.3771]
[1748451895907,2.1365,2655.5,2655.3,0.75293]
[1748451896107,2.1365,2655.5,2655.4,1.3352]
[1748451896506,0.75293,2655.3,2655.2,0.75295]
[1748451896706,0.75296,2655.2,2655.1,0.00564759]
[1748451896907,2.08886,2655.2,2655.1,0.00564759]
[1748451899407,0.7531,2654.7,2654.6,3.2078]
[1748451899613,0.75316,2654.5,2654.4,1.3457]
[1748451899910,0.75327,2654.1,2654.0,0.7533]
[1748451900108,1.88307,2654.3,2653.9,1.3457]
[1748451900308,0.7533,2654.0,2653.9,1.3457]
[1748451900508,0.75336,2653.8,2653.7,0.00376506]
[1748451901307,3.96116,2653.8,2653.7,0.00376506]
[1748451901511,0.7535,2653.3,2653.2,1.3457]
[1748451901712,1.2534,2653.7,2653.2,1.3457]
[1748451901905,0.7535,2653.3,2653.2,1.3457]
[1748451902110,0.75348,2653.4,2653.2,2.09922]
[1748451902314,0.7535,2653.3,2653.2,1.3457]
[1748451902507,0.75351,2653.3,2653.0,0.75356]
[1748451902713,1.2534,2653.2,2653.0,2.06756]
[1748451902916,2.00693,2653.2,2653.0,1.314]
[1748451903109,2.00693,2653.2,2653.0,2.06757]
[1748451903312,2.00693,2653.2,2653.0,2.06755]
[1748451903511,2.00692,2653.2,2653.0,2.06755]
[1748451903715,2.00692,2653.2,2652.9,3.2078]
[1748451903716,1.2534,2653.2,2652.9,3.2078]
[1748451903914,0.75356,2653.0,2652.9,3.2078]
[1748451905510,1.88395,2653.0,2652.3,7.7798]
[1748451905716,1.2959,2652.9,2652.4,1.254]
[1748451906116,2.04949,2652.9,2652.7,0.75363]
[1748451906424,0.75365,2652.7,2652.6,3.2078]
[1748451906624,0.75364,2652.8,2652.6,3.96148]
[1748451906820,0.75358,2653.0,2652.8,0.7536]
[1748451907126,0.6624,2653.1,2652.7,1.254]
[1748451907420,1.2959,2652.9,2652.5,0.75369]
[1748451907621,4.5037,2652.9,2652.4,1.254]
[1748451907926,0.75382,2652.1,2652.0,3.2078]
[1748451908124,5.09202,2652.6,2652.0,3.96165]
[1748451908319,0.75381,2652.2,2652.0,3.96165]
[1748451908623,0.75381,2652.2,2652.1,1.2333]
[1748451909323,0.75388,2651.9,2651.8,0.6455]
[1748451909524,0.75388,2651.9,2651.5,41.1658]
[1748451909525,0.75388,2651.9,2651.5,21.8598]
[1748451909713,1.3435,2652.1,2651.8,3.2078]
[1748451909915,3.2078,2652.5,2651.8,5.09255]
[1748451910115,0.75368,2652.6,2652.5,0.75368]
[1748451910524,0.75373,2652.4,2652.0,3.8505]
[1748451910823,0.75367,2652.7,2652.6,0.75368]
[1748451911019,0.75369,2652.6,2652.5,0.75369]
[1748451911919,0.75374,2652.4,2652.3,3.2078]
[1748451912516,0.75377,2652.3,2652.2,1.2285]
[1748451912719,0.75383,2652.1,2652.0,3.2078]
[1748451913530,0.75391,2651.8,2651.7,3.96174]
[1748451913917,0.75391,2651.8,2651.7,3.2078]
[1748451914828,1.3519,2652.0,2651.7,3.2078]
[1748451915022,0.75389,2651.9,2651.8,1.9742]
[1748451915826,0.75389,2651.9,2651.8,1.2203]
[1748451916926,0.75391,2651.8,2651.7,3.2078]
[1748451917132,2.05531,2651.8,2651.7,3.2078]
[1748451917724,0.6096,2652.3,2652.2,0.7538]
[1748451917925,3.96156,2652.4,2652.3,0.75377]
[1748451917926,3.2078,2652.4,2652.3,0.75377]
[1748451918123,3.96156,2652.4,2652.3,0.75377]
[1748451918530,1.3014,2652.5,2652.2,0.75378]
[1748451918531,0.7538,2652.3,2652.2,0.75378]
[1748451918731,0.7538,2652.3,2652.2,1.97748]
[1748451920330,0.75376,2652.4,2652.3,0.75374]
[1748451920531,0.75376,2652.4,2652.3,2.06024]
[1748451920828,5.09175,2653.0,2652.3,1.3065]
[1748451921032,0.7537,2652.6,2652.5,0.75368]
[1748451921336,0.86667,2652.7,2652.6,0.75365]
[1748451923130,0.113,2652.7,2652.6,0.75365]
[1748451923329,0.113,2652.7,2652.6,6.13075]
[1748451924323,0.00564759,2652.9,2652.8,0.75363]
[1748451924527,0.00564759,2652.9,2652.8,3.96143]
[1748451924928,0.00564759,2652.9,2652.8,5.26073]
[1748451925130,0.00564759,2652.9,2652.8,5.63783]
[1748451925428,0.00564759,2652.9,2652.8,9.79273]
[1748451925632,0.00564759,2652.9,2652.8,1.2993]
[1748451925931,0.75373,2652.5,2652.2,9.0223]
[1748451926235,0.75373,2652.5,2652.4,0.75372]
[1748451926831,0.75373,2652.5,2652.4,2.01472]
[1748451927231,2.0416,2652.6,2652.5,0.75371]